bitfinex/quotes_SOLUSD_20250207
["timestamp","ask_amount","ask_price","bid_price","bid_amount"]
[1738942980863,27.69343543,199.29,199.22,24.17150879]
[1738942981189,24.17150879,199.23,199.21,0.03]
[1738942981482,13.41184853,199.25,199.21,0.03]
[1738942981483,24.17150879,199.24,199.21,0.03]
[1738942981652,44.17150879,199.26,199.21,0.03]
[1738942982482,2.12549,199.21,199.17,0.03]
[1738942982695,13.41184853,199.16,199.07,0.03]
[1738942982856,24.17150879,199.12,199.07,0.03]
[1738942983258,24.17150879,199.13,199.07,0.03]
[1738942983808,1.0,199.19,199.07,0.03]
[1738942983809,24.18103543,199.29,199.15,0.25098]
[1738942984089,24.17150879,199.23,199.15,0.25098]
[1738942984382,37.58335732,199.27,199.18,24.17150879]
[1738942984893,27.68470879,199.25,199.18,24.17150879]
[1738942985260,3.5132,199.25,199.18,24.17150879]
[1738942985462,3.5132,199.25,199.19,24.17150879]
[1738942986164,0.00952664,199.29,199.24,24.17150879]
[1738942986381,3.52192664,199.29,199.24,24.17150879]
[1738942986555,20.0,199.25,199.11,0.75287624]
[1738942986758,13.41184853,199.24,199.12,5.022]
[1738942987158,13.41184853,199.24,199.13,0.25098]
[1738942987560,19.74434853,199.22,199.09,5.0228]
[1738942987757,13.41184853,199.2,199.09,5.0228]
[1738942987993,13.41184853,199.2,199.13,24.17150879]
[1738942987994,37.58335732,199.2,199.13,24.17150879]
[1738942988173,9.8462,199.22,199.16,24.17150879]
[1738942988375,9.8462,199.22,199.17,24.17150879]
[1738942988673,9.8462,199.22,199.16,24.17150879]
[1738942989266,24.17150879,199.21,199.14,29.19300879]
[1738942989699,34.01770879,199.22,199.15,24.17150879]
[1738942991079,24.17150879,199.18,199.11,29.19380879]
[1738942991275,37.58335732,199.17,199.1,24.17150879]
[1738942991477,13.41184853,199.17,199.1,24.17150879]
[1738942991681,13.41184853,199.17,199.11,24.17150879]
[1738942991868,13.41184853,199.17,199.12,24.17150879]
[1738942992395,37.58335732,199.16,199.09,24.17150879]
[1738942992598,37.58335732,199.14,199.07,24.20150879]
[1738942992804,24.17150879,199.13,199.07,0.03]
[1738942993005,24.17150879,199.14,199.07,24.20150879]
[1738942993184,24.17150879,199.16,199.08,24.17150879]
[1738942993371,13.41184853,199.15,199.1,24.17150879]
[1738942993566,37.58335732,199.17,199.1,24.17150879]
[1738942993790,13.41184853,199.13,199.07,24.20150879]
[1738942994401,13.41184853,199.12,199.07,0.03]
[1738942994578,16.92724853,199.12,199.07,0.03]
[1738942994782,16.92724853,199.12,199.07,24.20150879]
[1738942995099,24.17150879,199.15,199.08,24.17150879]
[1738942995405,1.6458,199.19,199.14,24.17150879]
[1738942995570,1.6458,199.19,199.13,24.17150879]
[1738942995965,13.41184853,199.18,199.12,24.17150879]
[1738942996171,37.58335732,199.18,199.11,24.17150879]
[1738942996601,3.5145,199.17,199.11,24.17150879]
[1738942996794,3.5145,199.17,199.1,5.0225]
[1738942996795,13.41184853,199.18,199.12,24.17150879]
[1738942996994,13.41184853,199.18,199.13,24.17150879]
[1738942997200,1.6458,199.19,199.15,24.17150879]
[1738942997510,1.0,199.28,199.19,0.25098]
[1738942997511,6.1281,199.28,199.19,0.25098]
[1738942997674,0.00952664,199.29,199.22,0.25098]
[1738942997871,0.00952664,199.29,199.23,0.75257576]
[1738942998085,0.00952664,199.29,199.24,0.25098]
[1738942998303,0.00952664,199.29,199.25,0.75247131]
[1738942998495,0.00952664,199.29,199.28,24.17150879]
[1738942998675,0.00952664,199.29,199.28,29.18950879]
[1738942998891,0.00952664,199.29,199.28,24.17150879]
[1738942999883,0.00952664,199.29,199.27,24.17150879]
[1738943000507,0.00952664,199.29,199.26,24.17150879]
[1738943000704,0.00952664,199.29,199.13,2.22873251]
[1738943000910,24.17150879,199.25,199.14,5.0215]
[1738943001118,24.17150879,199.22,199.15,24.17150879]
[1738943001484,30.37780879,199.23,199.16,24.17150879]
[1738943001691,6.2063,199.23,199.14,6.02548908]
[1738943001889,6.2063,199.23,199.19,24.17150879]
[1738943002480,6.2063,199.23,199.17,24.17150879]
[1738943002920,24.17150879,199.22,199.15,24.17150879]
[1738943003117,24.17150879,199.19,199.12,24.17150879]
[1738943003414,24.17150879,199.18,199.11,29.19380879]
[1738943003586,24.17150879,199.19,199.12,24.17150879]
[1738943003788,24.17150879,199.2,199.13,24.17150879]
[1738943004217,33.89130879,199.23,199.16,24.17150879]
[1738943004589,24.17150879,199.2,199.13,24.17150879]
[1738943004786,24.17150879,199.18,199.11,24.17150879]
[1738943005011,24.17150879,199.16,199.09,24.17150879]
[1738943005219,0.5,199.18,199.07,0.03]
[1738943005427,24.17150879,199.15,199.08,24.17150879]
[1738943005587,24.17150879,199.14,199.07,24.20150879]
[1738943005784,24.17150879,199.12,199.07,0.03]
[1738943006088,24.17150879,199.09,199.07,0.03]
[1738943006290,24.17150879,199.08,199.07,0.03]
[1738943006499,3.5161,199.08,199.07,0.03]
[1738943006799,39.38654013,199.09,199.07,0.03]
[1738943007407,39.38654013,199.08,199.07,0.03]
[1738943008387,42.90264013,199.08,199.07,0.03]
[1738943010418,56.81448866,199.08,199.07,0.03]
[1738943010813,56.31448866,199.08,199.07,0.03]
[1738943011016,56.81448866,199.08,199.07,0.03]
[1738943011413,20.0,199.05,198.97,0.03]
[1738943011608,39.38654013,199.03,198.97,0.03]
[1738943012103,52.79838866,199.04,198.97,39.41654013]
[1738943012495,56.31538866,199.04,198.97,39.41654013]
[1738943015529,3.517,199.04,198.99,39.38654013]
[1738943015728,20.0,199.05,198.99,39.38654013]
[1738943015902,13.41184853,199.04,198.99,39.38654013]
[1738943016109,13.41184853,198.99,198.97,0.03]
[1738943016415,39.38654013,198.98,198.97,0.03]
[1738943016616,56.31628866,198.98,198.97,0.03]
[1738943017328,62.68878866,198.98,198.97,0.03]
[1738943018526,45.75904013,198.98,198.97,0.03]
[1738943018731,6.3725,198.98,198.97,0.03]
[1738943018904,45.75904013,198.98,198.97,0.03]
[1738943019225,62.68878866,198.98,198.97,0.03]
[1738943019421,23.30224853,198.98,198.97,0.03]
[1738943020034,62.68878866,198.98,198.97,0.03]
[1738943020527,6.3725,198.98,198.97,0.03]
[1738943020707,45.75904013,198.98,198.97,0.03]
[1738943020906,62.68878866,198.98,198.97,0.03]
[1738943021529,63.93976866,198.98,198.97,0.03]
[1738943021728,63.93976866,198.98,198.94,0.03]
[1738943021729,15.41184853,198.97,198.94,0.03]
[1738943021936,52.79838866,198.95,198.94,0.03]
[1738943022428,58.44227866,198.95,198.94,0.03]
[1738943022638,58.44227866,198.95,198.94,0.0001]
[1738943023047,56.94227866,198.95,198.94,0.0001]
[1738943023347,58.94227866,198.95,198.94,0.0001]
[1738943024432,56.94227866,198.95,198.94,0.0001]
[1738943024631,56.81678866,198.95,198.94,0.0001]
[1738943024837,57.06776866,198.95,198.94,0.0001]
[1738943025415,58.06776866,198.95,198.94,0.0001]
[1738943025831,59.06776866,198.95,198.94,0.0001]
[1738943026337,58.06776866,198.95,198.94,0.0001]
[1738943026537,56.81678866,198.95,198.94,0.0001]
[1738943026713,41.71227037,198.95,198.94,0.0001]
[1738943027214,27.80032184,198.96,198.94,0.0001]
[1738943027428,24.28202184,198.97,198.94,0.0001]
[1738943027840,13.41184853,198.95,198.94,0.0001]
[1738943028031,24.28202184,198.97,198.94,0.0001]
[1738943028230,27.79942184,199.01,198.94,0.0001]
[1738943028432,24.28202184,199.0,198.94,0.0001]
[1738943029345,13.41184853,198.99,198.94,0.0001]
[1738943029657,24.28202184,199.01,198.94,24.28212184]
[1738943030158,24.28202184,199.03,198.96,24.28202184]
[1738943030364,6.4119,199.04,198.97,24.28202184]
[1738943030531,24.28202184,199.05,198.98,24.28202184]
[1738943030734,37.69387037,199.06,198.98,24.28202184]
[1738943030934,37.69387037,199.06,198.94,1.00477061]
[1738943030935,0.063,199.01,198.99,24.28202184]
[1738943031158,0.063,199.01,199.0,24.28202184]
[1738943031365,0.063,199.01,198.98,24.28202184]
[1738943031731,0.063,199.01,198.97,24.28202184]
[1738943031962,0.063,199.01,198.96,24.28202184]
[1738943032166,0.063,199.01,198.97,24.28202184]
[1738943032952,0.063,199.01,198.97,29.30772184]
[1738943033562,0.063,199.01,199.0,24.28202184]
[1738943033859,0.063,199.01,198.99,24.28202184]
[1738943034062,0.063,199.01,198.94,0.0001]
[1738943034063,24.28202184,199.0,198.94,0.0001]
[1738943034263,24.28202184,198.97,198.94,0.0001]
[1738943034938,27.80012184,198.97,198.94,0.0001]
[1738943035143,24.28202184,198.97,198.94,0.0001]
[1738943035463,24.28202184,198.99,198.94,0.0001]
[1738943036040,24.28202184,199.0,198.94,0.0001]
[1738943036461,13.41184853,199.0,198.94,24.28212184]
[1738943036758,24.28202184,198.99,198.94,0.0001]
[1738943036956,37.69387037,198.98,198.94,0.0001]
[1738943037163,13.41184853,198.97,198.94,0.0001]
[1738943037367,37.69387037,198.97,198.94,0.0001]
[1738943038158,13.41184853,198.97,198.94,0.0001]
[1738943038465,24.28202184,198.95,198.94,0.0001]
[1738943038648,37.69387037,198.95,198.94,0.0001]
[1738943039165,13.41184853,198.94,198.92,0.03]
[1738943039341,38.19387037,198.93,198.92,0.03]
[1738943040465,41.21267037,198.93,198.92,0.03]
[1738943041246,41.33816037,198.93,198.92,0.03]
[1738943041445,41.83816037,198.93,198.92,0.03]
[1738943041746,41.83816037,198.93,198.92,0.0001]
[1738943041747,42.96365037,198.93,198.92,0.0001]
[1738943042673,15.53733853,198.92,198.91,0.0001]
[1738943042961,39.81936037,198.92,198.91,0.0001]
[1738943043173,38.69387037,198.92,198.91,0.0001]
[1738943043353,37.69387037,198.92,198.91,0.0001]
[1738943043671,37.69387037,198.92,198.75,13.33292248]
[1738943043672,13.41184853,198.86,198.77,0.03]
[1738943043869,24.28202184,198.82,198.77,0.03]
[1738943044355,13.41184853,198.82,198.77,0.03]
[1738943044768,24.28202184,198.86,198.78,24.28202184]
[1738943045071,27.80222184,198.86,198.78,24.28202184]
[1738943045276,24.28202184,198.86,198.78,24.28202184]
[1738943045754,13.41184853,198.86,198.79,24.28202184]
[1738943046069,24.28202184,198.88,198.81,24.28202184]
[1738943046377,27.80162184,198.89,198.82,24.28202184]
[1738943046665,41.21357037,198.88,198.8,24.28202184]
[1738943046874,24.28202184,198.87,198.79,24.28202184]
[1738943047370,9.2984,198.9,198.85,24.28202184]
[1738943047371,3.5195,198.9,198.85,24.28202184]
[1738943047677,13.41184853,198.89,198.84,24.28202184]
[1738943048257,13.41184853,198.89,198.82,24.28202184]
[1738943048457,37.69387037,198.89,198.82,24.28202184]
[1738943048948,3.5197,198.88,198.82,24.28202184]
[1738943049154,3.5197,198.88,198.84,24.28202184]
[1738943049763,3.519,198.92,198.86,24.28202184]
[1738943049946,20.0,198.9,198.85,24.28202184]
[1738943050146,20.0,198.9,198.84,24.28202184]
[1738943050372,37.69387037,198.89,198.82,24.28202184]
[1738943050570,13.41184853,198.89,198.82,24.28202184]
[1738943051272,3.5197,198.88,198.82,24.28202184]
[1738943051849,13.41184853,198.87,198.81,24.28202184]
[1738943052566,13.41184853,198.87,198.8,24.28202184]
[1738943052777,106.08202184,198.86,198.79,24.28202184]
[1738943053071,3.5205,198.83,198.78,24.28202184]
[1738943053274,3.5205,198.83,198.79,24.28202184]
[1738943053575,3.5205,198.83,198.78,24.28202184]
[1738943053765,13.41184853,198.82,198.77,24.31202184]
[1738943053954,37.69387037,198.82,198.77,0.03]
[1738943054158,37.69387037,198.82,198.77,24.31202184]
[1738943054159,13.41184853,198.82,198.77,24.31202184]
[1738943055070,24.28202184,198.78,198.77,0.03]
[1738943055454,37.69387037,198.78,198.77,0.03]
[1738943055769,38.19387037,198.78,198.77,0.03]
[1738943056348,38.19387037,198.78,198.77,0.0001]
[1738943056349,39.44485037,198.78,198.77,0.0001]
[1738943056546,33.41184853,198.75,198.72,0.03]
[1738943056750,58.19387037,198.75,198.72,0.03]
[1738943056972,61.71587037,198.75,198.72,0.03]
[1738943057769,13.41184853,198.74,198.72,0.03]
[1738943057968,13.41184853,198.69,198.62,0.03]
[1738943058156,20.0,198.7,198.62,24.31202184]
[1738943058157,44.28202184,198.7,198.62,24.31202184]
[1738943058360,12.327,198.75,198.67,24.28202184]
[1738943058361,27.80402184,198.75,198.67,24.28202184]
[1738943058555,27.80402184,198.75,198.68,24.28202184]
[1738943058757,20.0,198.72,198.66,24.28202184]
[1738943059054,13.41184853,198.69,198.63,24.28202184]
[1738943059252,13.41184853,198.69,198.62,0.03]
[1738943059479,13.41184853,198.69,198.63,24.28202184]
[1738943059654,9.7778,198.7,198.64,24.28202184]
[1738943059852,34.55982184,198.7,198.62,24.31202184]
[1738943060071,24.28202184,198.68,198.62,0.03]
[1738943060252,37.69387037,198.69,198.62,0.03]
[1738943060473,13.41184853,198.69,198.64,24.28202184]
[1738943061054,13.41184853,198.67,198.62,0.03]
[1738943061255,24.28202184,198.65,198.62,0.03]
[1738943061653,13.41184853,198.64,198.62,0.03]
[1738943062055,24.28202184,198.68,198.62,0.03]
[1738943062272,3.5231,198.69,198.64,24.28202184]
[1738943062469,3.5231,198.69,198.62,5.0647]
[1738943062470,9.7779,198.7,198.65,24.28202184]
[1738943062674,9.7779,198.7,198.64,24.28202184]
[1738943062875,6.255,198.7,198.64,24.28202184]
[1738943063075,6.255,198.7,198.62,5.0647]
[1738943063076,9.7779,198.7,198.65,24.28202184]
[1738943063262,9.7779,198.7,198.64,24.28202184]
[1738943063673,9.7779,198.7,198.63,24.28202184]
[1738943064184,16.93504853,198.69,198.63,24.28202184]
[1738943064370,3.5221,198.74,198.68,24.28202184]
[1738943064575,3.5221,198.74,198.69,24.28202184]
[1738943064751,20.0,198.72,198.68,24.28202184]
[1738943064953,13.41184853,198.73,198.68,24.28202184]
[1738943065456,3.5221,198.74,198.7,24.28202184]
[1738943065658,6.4832,198.75,198.7,24.28202184]
[1738943066278,5.0488,198.78,198.73,24.28202184]
[1738943066479,10.0043,198.8,198.75,24.28202184]
[1738943066671,20.0,198.8,198.76,24.28202184]
[1738943066869,5.0714,198.84,198.79,24.28202184]
[1738943067076,13.41184853,198.83,198.78,24.28202184]
[1738943067465,13.41184853,198.81,198.76,24.28202184]
[1738943067676,24.28202184,198.79,198.72,24.28202184]
[1738943068186,13.41184853,198.79,198.73,24.28202184]
[1738943068360,13.41184853,198.79,198.74,24.28202184]
[1738943068556,20.0,198.8,198.75,24.28202184]
[1738943068754,3.5213,198.79,198.75,24.28202184]
[1738943069479,3.5205,198.83,198.78,24.28202184]
[1738943069886,3.5205,198.83,198.77,24.28202184]
[1738943070068,13.41184853,198.82,198.76,24.28202184]
[1738943070467,13.41184853,198.82,198.77,24.28202184]
[1738943070861,24.28202184,198.82,198.74,24.28202184]
[1738943071174,3.5199,198.87,198.81,24.28202184]
[1738943071480,13.41184853,198.85,198.72,18.3668245]
[1738943071678,13.41184853,198.85,198.73,0.25098]
[1738943071885,0.5,198.88,198.83,24.28202184]
[1738943071886,3.5197,198.88,198.83,24.28202184]
[1738943072185,3.5197,198.88,198.85,24.28202184]
[1738943072386,83.4612,198.89,198.78,0.25098]
[1738943072387,83.4612,198.89,198.84,24.28202184]
[1738943073173,83.4612,198.89,198.83,24.28202184]
[1738943073388,81.8,198.89,198.83,24.28202184]
[1738943073576,37.69387037,198.88,198.81,24.28202184]
[1738943073883,106.08202184,198.89,198.82,24.28202184]
[1738943074089,81.8,198.89,198.83,24.28202184]
[1738943074289,3.5197,198.88,198.82,24.28202184]
[1738943074588,3.5197,198.88,198.83,24.28202184]
[1738943075167,81.8,198.89,198.86,24.28202184]
[1738943075360,24.34502184,198.93,198.81,0.25098]
[1738943075361,0.063,198.93,198.88,24.28202184]
[1738943075594,0.063,198.93,198.89,24.28202184]
[1738943075765,37.69387037,198.92,198.85,24.28202184]
[1738943075968,37.69387037,198.92,198.8,5.0301]
[1738943075969,24.28202184,198.89,198.8,5.0301]
[1738943076273,27.80162184,198.89,198.78,0.25098]
[1738943076487,27.80162184,198.89,198.82,24.28202184]
[1738943076667,3.5196,198.89,198.83,24.28202184]
[1738943077665,13.41184853,198.88,198.83,24.28202184]
[1738943077871,13.41184853,198.86,198.8,24.28202184]
[1738943078279,13.41184853,198.88,198.81,24.28202184]
[1738943078594,20.0,198.88,198.85,24.28202184]
[1738943079090,20.0,198.89,198.86,24.28202184]
[1738943079585,13.41184853,198.88,198.82,24.28202184]
[1738943079792,13.41184853,198.88,198.81,24.28202184]
[1738943080187,20.0,198.89,198.85,24.28202184]
[1738943080490,23.5195,198.89,198.85,24.28202184]
[1738943080692,23.5195,198.89,198.86,24.28202184]
[1738943080891,81.8,198.92,198.87,24.28202184]
[1738943081071,81.8,198.92,198.9,24.28202184]
[1738943081898,81.8,198.92,198.89,24.28202184]
[1738943082281,81.8,198.92,198.91,24.28202184]
[1738943082882,81.8,198.92,198.9,24.28202184]
[1738943083082,81.8,198.92,198.88,24.28202184]
[1738943083083,85.319,198.92,198.88,24.28202184]
[1738943083270,81.8,198.92,198.9,24.28202184]
[1738943083677,81.8,198.92,198.88,24.28202184]
[1738943083981,81.8,198.92,198.9,24.28202184]
[1738943084368,85.319,198.92,198.88,24.28202184]
[1738943084569,85.319,198.92,198.83,0.25098]
[1738943084570,13.41184853,198.89,198.83,24.28202184]
[1738943084794,24.28202184,198.88,198.81,24.28202184]
[1738943085178,13.41184853,198.88,198.82,24.28202184]
[1738943085702,16.93184853,198.87,198.81,24.28202184]
[1738943086279,3.52,198.87,198.82,24.28202184]
[1738943086584,3.52,198.87,198.81,24.28202184]
[1738943088290,3.52,198.87,198.82,24.28202184]
[1738943088496,3.52,198.87,198.81,24.28202184]
[1738943088705,13.41184853,198.86,198.8,24.28202184]
[1738943089692,13.41184853,198.86,198.81,24.28202184]
[1738943089898,3.5198,198.87,198.83,24.28202184]
[1738943090205,12.3195,198.87,198.8,24.28202184]
[1738943090496,13.41184853,198.85,198.79,24.28202184]
[1738943090674,13.41184853,198.85,198.8,24.28202184]
[1738943091283,20.0,198.85,198.81,24.28202184]
[1738943091493,3.5197,198.88,198.82,24.28202184]
[1738943091690,13.41184853,198.87,198.81,24.28202184]
[1738943093096,3.52,198.86,198.81,24.28202184]
[1738943093596,3.52,198.86,198.82,24.28202184]
[1738943095380,81.8,198.88,198.84,24.28202184]
[1738943095706,3.5198,198.87,198.84,24.28202184]
[1738943095998,3.5198,198.87,198.78,5.0306]
[1738943095999,3.5198,198.87,198.85,24.28202184]
[1738943096196,85.3197,198.88,198.86,24.28202184]
[1738943096516,81.8,198.88,198.87,24.28202184]
[1738943097976,81.863,198.88,198.87,24.28202184]
[1738943098973,85.3827,198.88,198.84,24.28202184]
[1738943099180,95.21184853,198.87,198.81,24.31202184]
[1738943100307,81.8,198.87,198.83,24.28202184]
[1738943100502,81.8,198.87,198.84,24.28202184]
[1738943100917,85.3199,198.87,198.85,24.28202184]
[1738943101088,81.8,198.87,198.86,24.28202184]
[1738943101286,13.41184853,198.85,198.81,0.03]
[1738943101600,3.5198,198.87,198.81,0.03]
[1738943101601,37.69387037,198.83,198.81,0.03]
[1738943101899,119.49387037,198.82,198.81,0.03]
[1738943102112,37.69387037,198.82,198.81,0.03]
[1738943102285,38.19387037,198.82,198.81,0.03]
[1738943102487,20.0,198.79,198.76,0.03]
[1738943102694,24.28202184,198.77,198.76,0.03]
[1738943103006,25.11084853,198.73,198.72,0.03]
[1738943103309,49.89287037,198.73,198.72,0.03]
[1738943103494,13.41184853,198.69,198.63,24.28202184]
[1738943103676,13.41184853,198.69,198.62,24.31202184]
[1738943103881,13.41184853,198.69,198.65,24.28202184]
[1738943104105,81.8,198.72,198.66,24.28202184]
[1738943104313,81.8,198.72,198.7,24.28202184]
[1738943104609,81.8,198.72,198.69,24.28202184]
[1738943104812,81.8,198.72,198.63,0.25098]
[1738943104813,81.8,198.72,198.67,24.28202184]
[1738943105023,13.41184853,198.7,198.65,24.28202184]
[1738943105230,13.41184853,198.7,198.66,24.28202184]
[1738943105526,13.41184853,198.7,198.65,24.28202184]
[1738943106133,57.69387037,198.67,198.62,0.03]
[1738943106291,33.41184853,198.67,198.62,0.03]
[1738943107219,13.41184853,198.65,198.62,0.03]
[1738943107718,13.41184853,198.63,198.62,0.03]
[1738943107926,37.69387037,198.63,198.62,0.03]
[1738943108132,39.25177037,198.63,198.62,0.03]
[1738943108624,0.12549,198.62,198.61,0.0001]
[1738943108792,38.44485037,198.62,198.61,0.0001]
[1738943109309,41.71817037,198.62,198.61,0.0001]
[1738943109497,17.43614853,198.62,198.61,0.0001]
[1738943109819,16.93614853,198.62,198.61,0.0001]
[1738943110598,41.34366037,198.62,198.61,0.0001]
[1738943110825,41.46915037,198.62,198.61,0.0001]
[1738943111212,41.21817037,198.62,198.61,0.0001]
[1738943111415,16.93614853,198.62,198.61,0.0001]
[1738943111617,41.21817037,198.62,198.61,0.0001]
[1738943111817,42.21817037,198.62,198.61,0.0001]
[1738943112016,24.28202184,198.57,198.56,0.03]
[1738943112196,37.69387037,198.57,198.56,0.03]
[1738943112709,6.6408,198.56,198.53,0.03]
[1738943112897,37.69387037,198.54,198.53,0.03]
[1738943113214,39.19857037,198.54,198.53,0.0001]
[1738943113423,44.48963034,198.54,198.53,0.0001]
[1738943113615,44.98963034,198.54,198.53,0.0001]
[1738943113810,43.72797037,198.54,198.53,0.0001]
[1738943114294,19.44594853,198.54,198.53,0.0001]
[1738943114498,43.72797037,198.54,198.53,0.0001]
[1738943114708,6.6408,198.56,198.53,24.28212184]
[1738943114927,85.8284,198.59,198.55,24.28202184]
[1738943115122,85.8284,198.59,198.53,0.0001]
[1738943115626,85.8284,198.59,198.53,20.0001]
[1738943116142,83.4304,198.66,198.58,24.28202184]
[1738943116311,83.4304,198.66,198.6,24.28202184]
[1738943116519,24.28202184,198.61,198.54,24.28202184]
[1738943116831,28.00684853,198.65,198.53,0.0001]
[1738943116832,13.41184853,198.62,198.53,0.0001]
[1738943117002,1.0,198.63,198.53,0.0001]
[1738943117003,24.28202184,198.56,198.53,0.0001]
[1738943117201,0.5,198.55,198.53,0.0001]
[1738943117415,17.44124853,198.54,198.53,0.0001]
[1738943118302,41.72327037,198.54,198.53,0.0001]
[1738943120115,17.44124853,198.54,198.53,0.0001]
[1738943120725,41.72327037,198.54,198.53,0.0001]
[1738943121335,41.84876037,198.54,198.53,0.0001]
[1738943121909,41.72327037,198.54,198.53,0.0001]
[1738943122125,43.74116337,198.54,198.53,0.0001]
[1738943122730,17.44124853,198.54,198.53,0.0001]
[1738943123227,4.0292,198.56,198.53,0.0001]
[1738943123453,10.294,198.57,198.53,0.0001]
[1738943123736,6.0814,198.63,198.56,24.28202184]
[1738943123912,10.1091,198.63,198.58,24.28202184]
[1738943124111,1.6656,198.66,198.61,24.28202184]
[1738943124419,4.0261,198.71,198.65,24.28202184]
[1738943124630,25.94762184,198.73,198.66,24.28202184]
[1738943124836,13.41184853,198.71,198.65,24.28202184]
[1738943125008,24.28202184,198.72,198.65,24.28202184]
[1738943125211,87.4913,198.73,198.67,24.28202184]
[1738943125933,111.77332184,198.73,198.66,24.28202184]
[1738943126627,38.19387037,198.72,198.64,24.28202184]
[1738943126935,38.19387037,198.72,198.65,24.28202184]
[1738943127111,38.19387037,198.72,198.64,24.28202184]
[1738943127314,24.28202184,198.67,198.6,24.28202184]
[1738943127519,24.28202184,198.67,198.56,24.28202184]
[1738943127520,24.28202184,198.63,198.56,24.28202184]
[1738943127717,24.28202184,198.63,198.54,5.0367]
[1738943127718,24.28202184,198.63,198.55,24.28202184]
[1738943127928,24.28202184,198.59,198.53,0.0001]
[1738943128238,13.41184853,198.58,198.53,0.0001]
[1738943128740,13.41184853,198.6,198.53,0.0001]
[1738943129047,13.41184853,198.58,198.53,0.0001]
[1738943129231,0.5,198.59,198.53,0.0001]
[1738943129232,24.78202184,198.59,198.53,0.0001]
[1738943129433,81.8,198.6,198.56,24.28202184]
[1738943129614,85.8282,198.6,198.55,24.28202184]
[1738943129817,85.8282,198.6,198.53,0.0001]
[1738943129818,85.8282,198.6,198.54,24.28202184]
[1738943130014,13.41184853,198.59,198.54,24.28202184]
[1738943130232,13.41184853,198.59,198.53,0.0001]
[1738943130233,106.08202184,198.58,198.53,0.0001]
[1738943130433,81.8,198.58,198.53,24.28212184]
[1738943131016,81.8,198.58,198.54,24.28202184]
[1738943131237,81.8,198.58,198.57,24.28202184]
[1738943131546,81.8,198.58,198.57,29.31802184]
[1738943131839,81.8,198.58,198.55,24.28202184]
[1738943132040,81.8,198.58,198.54,24.28202184]
[1738943132243,81.8,198.57,198.53,0.0001]
[1738943132556,95.71184853,198.56,198.53,0.0001]
[1738943133424,37.44124853,198.54,198.53,0.0001]
[1738943133629,62.22327037,198.54,198.53,0.0001]
[1738943134339,0.5,198.54,198.53,0.0001]
[1738943134529,5.069,198.57,198.53,0.0001]
[1738943134530,28.31102184,198.57,198.53,0.0001]
[1738943134730,13.41184853,198.56,198.53,0.0001]
[1738943135136,6.5762,198.58,198.53,39.59481176]
[1738943135430,41.25391176,198.6,198.53,39.59481176]
[1738943135431,13.41184853,198.59,198.53,39.59481176]
[1738943135639,17.44024853,198.59,198.53,39.59481176]
[1738943135830,57.53496029,198.59,198.53,0.0001]
[1738943136039,13.41184853,198.57,198.53,0.0001]
[1738943136230,13.41184853,198.56,198.53,0.0001]
[1738943137055,53.00656029,198.56,198.53,0.0001]
[1738943137234,13.41184853,198.54,198.53,0.0001]
[1738943137554,17.44124853,198.54,198.53,0.0001]
[1738943138432,4.0292,198.55,198.53,0.0001]
[1738943138955,39.59471176,198.59,198.53,0.0001]
[1738943139160,0.5,198.62,198.56,39.59471176]
[1738943139161,81.8,198.62,198.56,39.59471176]
[1738943139356,81.8,198.62,198.57,39.59471176]
[1738943139656,39.59471176,198.59,198.53,0.0001]
[1738943139856,95.71184853,198.58,198.53,0.0001]
[1738943140038,13.41184853,198.56,198.53,0.0001]
[1738943140356,13.41184853,198.54,198.53,0.0001]
[1738943140731,33.41184853,198.54,198.53,0.0001]
[1738943140956,73.63205029,198.54,198.53,0.0001]
[1738943141250,76.36904029,198.54,198.53,0.0001]
[1738943141643,79.39844029,198.54,198.53,0.0001]
[1738943141850,80.39844029,198.54,198.53,0.0001]
[1738943142159,79.39844029,198.54,198.53,0.0001]
[1738943142367,79.14746029,198.54,198.53,0.0001]
[1738943144867,20.0,198.5,198.49,0.03]
[1738943145065,81.8,198.53,198.49,39.62471176]
[1738943145377,81.8,198.53,198.5,39.59471176]
[1738943145568,121.39471176,198.53,198.49,0.03]
[1738943145752,43.62451176,198.52,198.49,0.03]
[1738943145959,134.80656029,198.51,198.49,0.03]